fUSD/lending_fUSD_20241030
["ID","MTS","AMOUNT","RATE_DAILY","PERIOD"]
[341041571,1730301050833,-500.0,0.00033424,5]
[341041572,1730301050842,-638.53,0.00033424,5]
[341041573,1730301050852,-765.24,0.00033424,5]
[341041574,1730301050861,-500.0,0.00033424,5]
[341041575,1730301050870,-500.0,0.00033424,5]
[341041576,1730301050879,-500.0,0.00033424,5]
[341041577,1730301050889,-500.0,0.00033424,5]
[341041578,1730301050899,-726.09,0.00033424,5]
[341041579,1730301050908,-872.19,0.00033424,5]
[341041580,1730301050918,-500.0,0.00033424,5]
[341041581,1730301050927,-258.47215914,0.00033424,5]
[341041582,1730301050941,-1312.35,0.00033424,5]
[341041583,1730301050950,-500.0,0.00033424,5]
[341041584,1730301050959,-500.0,0.00033424,5]
[341041585,1730301050968,-500.0,0.00033424,5]
[341041586,1730301050977,-1481.81,0.00033424,5]
[341041587,1730301050987,-500.0,0.00033424,5]
[341041588,1730301050996,-500.0,0.00033424,5]
[341041589,1730301051005,-500.0,0.00033424,5]
[341041590,1730301051014,-500.0,0.00033424,5]
[341041591,1730301051023,-662.44,0.00033424,5]
[341041592,1730301051032,-500.0,0.00033424,5]
[341041593,1730301051042,-500.0,0.00033424,5]
[341041594,1730301051051,-500.0,0.00033424,5]
[341041595,1730301051060,-646.17,0.00033424,5]
[341041596,1730301051069,-500.0,0.00033424,5]
[341041597,1730301051078,-500.0,0.00033424,5]
[341041598,1730301051087,-679.04,0.00033424,5]
[341041599,1730301051096,-500.0,0.00033424,5]
[341041600,1730301051106,-925.77,0.00033424,5]
[341041601,1730301051116,-500.0,0.00033424,5]
[341041602,1730301051126,-500.0,0.00033424,5]
[341041603,1730301051136,-854.36,0.00033424,5]
[341041604,1730301051146,-500.0,0.00033424,5]
[341041605,1730301051156,-524.7,0.00033424,5]
[341041606,1730301051167,-1022.86,0.00033424,5]
[341041607,1730301051177,-725.7,0.00033424,5]
[341041608,1730301051188,-500.0,0.00033424,5]
[341041609,1730301051197,-500.0,0.00033424,5]
[341041610,1730301051211,-500.0,0.00033424,5]
[341041611,1730301051220,-1018.14,0.00033424,5]
[341041612,1730301051229,-500.0,0.00033424,5]
[341041613,1730301051239,-823.86,0.00033424,5]
[341041614,1730301051250,-1098.19,0.00033424,5]
[341041615,1730301051262,-574.74,0.00033424,5]
[341041616,1730301051273,-500.0,0.00033424,5]
[341041617,1730301051285,-500.0,0.00033424,5]
[341041618,1730301051299,-500.0,0.00033424,5]
[341041619,1730301051311,-500.0,0.00033424,5]
[341041620,1730301051324,-500.0,0.00033424,5]
[341041621,1730301051336,-500.0,0.00033424,5]
[341041622,1730301051346,-500.0,0.00033424,5]
[341041623,1730301051356,-500.0,0.00033424,5]
[341041624,1730301051366,-500.0,0.00033424,5]
[341041625,1730301051379,-500.0,0.00033424,5]
[341041626,1730301051390,-546.7,0.00033424,5]
[341041627,1730301051402,-500.0,0.00033424,5]
[341041628,1730301051412,-500.0,0.00033424,5]
[341041629,1730301051424,-500.0,0.00033424,5]
[341041630,1730301051438,-500.0,0.00033424,5]
[341041631,1730301051450,-636.4,0.00033424,5]
[341041632,1730301051461,-500.0,0.00033424,5]
[341041633,1730301051473,-1397.76,0.00033424,5]
[341041634,1730301051485,-540.06,0.00033424,5]
[341041635,1730301051497,-500.0,0.00033424,5]
[341041636,1730301051509,-601.3,0.00033424,5]
[341041637,1730301051519,-701.17,0.00033424,5]
[341041638,1730301051530,-1140.97,0.00033424,5]
[341041639,1730301051541,-724.57,0.00033424,5]
[341041640,1730301051553,-1327.32,0.00033424,5]
[341041641,1730301051564,-500.0,0.00033424,5]
[341041642,1730301051575,-500.0,0.00033424,5]
[341041643,1730301051586,-794.59,0.00033424,5]
[341041644,1730301051598,-500.0,0.00033424,5]
[341041645,1730301051610,-650.16,0.00033424,5]
[341041646,1730301051621,-508.69,0.00033424,5]
[341041647,1730301051632,-553.9,0.00033424,5]
[341041648,1730301051643,-500.0,0.00033424,5]
[341041649,1730301051654,-979.14,0.00033424,5]
[341041650,1730301051664,-604.38,0.00033424,30]
[341041651,1730301051674,-500.0,0.00033424,5]
[341041652,1730301051687,-500.0,0.00033424,5]
[341041653,1730301051699,-1224.33,0.00033424,5]
[341041654,1730301051710,-500.0,0.00033424,5]
[341041655,1730301051721,-500.0,0.00033424,5]
[341041656,1730301051732,-500.0,0.00033424,5]
[341041657,1730301051743,-902.67,0.00033424,5]
[341041658,1730301051754,-500.0,0.00033424,5]
[341041659,1730301051766,-500.0,0.00033424,5]
[341041660,1730301051777,-500.0,0.00033424,5]
[341041661,1730301051788,-500.0,0.00033424,5]
[341041662,1730301051800,-778.22,0.00033424,5]
[341041663,1730301051812,-500.0,0.00033424,5]
[341041664,1730301051824,-500.0,0.00033424,5]
[341041665,1730301051836,-500.0,0.00033424,5]
[341041666,1730301051847,-500.0,0.00033424,5]
[341041667,1730301051858,-500.0,0.00033424,5]
[341041668,1730301051868,-500.0,0.00033424,5]
[341041669,1730301051878,-500.0,0.00033424,5]
[341041670,1730301051888,-500.0,0.00033424,5]
[341041671,1730301051899,-1335.04,0.00033424,5]
[341041672,1730301051910,-500.0,0.00033424,5]
[341041673,1730301051921,-546.12,0.00033424,5]
[341041674,1730301051932,-500.0,0.00033424,5]
[341041675,1730301051948,-813.76,0.00033424,5]
[341041676,1730301051960,-500.0,0.00033424,5]
[341041677,1730301051971,-500.0,0.00033424,5]
[341041678,1730301051981,-581.37,0.00033424,5]
[341041679,1730301051991,-601.11,0.00033424,5]
[341041680,1730301052004,-500.0,0.00033424,5]
[341041681,1730301052014,-500.0,0.00033424,5]
[341041682,1730301052026,-500.0,0.00033424,5]
[341041683,1730301052036,-534.42291054,0.00033424,5]
[341041684,1730301052047,-500.0,0.00033424,5]
[341041685,1730301052057,-500.0,0.00033424,5]
[341041686,1730301052068,-500.0,0.00033424,5]
[341041687,1730301052079,-500.0,0.00033424,5]
[341041688,1730301052090,-3900.02,0.00033424,5]
[341041689,1730301052100,-500.0,0.00033424,5]
[341041690,1730301052112,-500.0,0.00033424,5]
[341041691,1730301052124,-3956.8,0.00033424,5]
[341041692,1730301052135,-500.0,0.00033424,5]
[341041693,1730301052147,-1033.49,0.00033424,5]
[341041694,1730301052157,-2561.17,0.00033424,5]
[341041695,1730301052168,-5020.91,0.00033424,5]
[341041696,1730301052179,-397.74878601,0.00033424,5]
[341041697,1730301052196,-309.84890436,0.00033424,5]
[341041698,1730301052212,-1504.38,0.00033424,5]
[341041699,1730301052223,-500.0,0.00033424,5]
[341041700,1730301052236,-500.0,0.00033424,5]
[341041701,1730301052246,-805.74,0.00033554,2]
[341041702,1730301052256,-303.32591973,0.00033616,60]
[341041703,1730301052268,-341.0,0.00033698,5]
[341041704,1730301052280,-500.0,0.00033698,5]
[341041705,1730301052291,-500.0,0.00033698,5]
[341041706,1730301052301,-500.0,0.00033698,5]
[341041707,1730301052312,-500.0,0.00033698,5]
[341041708,1730301052323,-500.0,0.00033698,5]
[341041709,1730301052334,-1139.26,0.00033698,2]
[341041710,1730301052345,-600.73,0.00033698,5]
[341041711,1730301052356,-500.0,0.00033698,5]
[341041712,1730301052367,-879.74,0.00033698,5]
[341041713,1730301052377,-834.42,0.00033698,5]
[341041714,1730301052388,-500.0,0.00033698,5]
[341041715,1730301052398,-500.0,0.00033698,5]
[341041716,1730301052408,-262.9966128,0.00033698,5]
[341041717,1730301052419,-500.0,0.00033698,5]
[341041718,1730301052429,-500.0,0.00033698,5]
[341041719,1730301052445,-500.0,0.00033698,5]
[341041720,1730301052455,-500.0,0.00033698,5]
[341041721,1730301052466,-500.0,0.00033698,5]
[341041722,1730301052477,-500.0,0.00033698,5]
[341041723,1730301052488,-500.0,0.00033698,5]
[341041724,1730301052499,-568.90004209,0.00033698,5]
[341041725,1730301052509,-541.52,0.00033698,5]
[341041726,1730301052520,-646.69,0.00033698,5]
[341041727,1730301052532,-500.0,0.00033698,5]
[341041728,1730301052543,-433.092516,0.00033698,5]
[341041729,1730301052554,-434.7460649,0.00033698,5]
[341041730,1730301052565,-599.58,0.00033698,5]
[341041731,1730301052575,-739.01,0.00033698,5]
[341041732,1730301052587,-644.7,0.00033698,5]
[341041733,1730301052597,-500.0,0.00033698,5]
[341041734,1730301052607,-610.76,0.00033698,5]
[341041735,1730301052618,-500.0,0.00033698,5]
[341041736,1730301052628,-500.0,0.00033698,5]
[341041737,1730301052639,-500.0,0.00033698,5]
[341041738,1730301052649,-500.0,0.00033698,5]
[341041739,1730301052660,-500.0,0.00033698,5]
[341041740,1730301052671,-500.0,0.00033698,5]
[341041741,1730301052681,-1213.36,0.00033698,5]
[341041742,1730301052695,-500.0,0.00033698,5]
[341041743,1730301052707,-500.0,0.00033698,5]
[341041744,1730301052718,-500.0,0.00033698,5]
[341041745,1730301052728,-741.71,0.00033698,5]
[341041746,1730301052738,-500.0,0.00033698,5]
[341041747,1730301052748,-500.0,0.00033698,5]
[341041748,1730301052760,-500.0,0.00033698,5]
[341041749,1730301052771,-500.0,0.00033698,5]
[341041750,1730301052781,-791.34,0.00033698,5]
[341041751,1730301052791,-2165.19,0.00033698,5]
[341041752,1730301052801,-2507.94,0.00033698,5]
[341041753,1730301052811,-500.0,0.00033698,5]
[341041754,1730301052821,-500.0,0.00033698,5]
[341041755,1730301052832,-556.27,0.00033698,5]
[341041756,1730301052842,-500.0,0.00033698,5]
[341041757,1730301052853,-850.73,0.00033698,5]
[341041758,1730301052863,-500.0,0.00033698,5]
[341041759,1730301052873,-500.0,0.00033698,5]
[341041760,1730301052885,-500.0,0.00033698,5]
[341041761,1730301052896,-500.0,0.00033698,5]
[341041762,1730301052908,-594.99,0.00033698,5]
[341041763,1730301052918,-500.0,0.00033698,5]
[341041764,1730301052929,-500.0,0.00033698,5]
[341041765,1730301052942,-500.0,0.00033698,5]
[341041766,1730301052952,-500.0,0.00033698,5]
[341041767,1730301052963,-638.53,0.00033698,5]
[341041768,1730301052973,-765.24,0.00033698,5]
[341041769,1730301052984,-500.0,0.00033698,5]
[341041770,1730301052994,-500.0,0.00033698,5]
[341041771,1730301053004,-500.0,0.00033698,5]
[341041772,1730301053014,-500.0,0.00033698,5]
[341041773,1730301053028,-726.09,0.00033698,5]
[341041774,1730301053038,-500.0,0.00033698,5]
[341041775,1730301053048,-872.19,0.00033698,5]
[341041776,1730301053058,-1312.35,0.00033698,5]
[341041777,1730301053070,-500.0,0.00033698,5]
[341041778,1730301053083,-500.0,0.00033698,5]
[341041779,1730301053093,-500.0,0.00033698,5]
[341041780,1730301053104,-1481.81,0.00033698,5]
[341041781,1730301053114,-500.0,0.00033698,5]
[341041782,1730301053124,-500.0,0.00033698,5]
[341041783,1730301053135,-500.0,0.00033698,5]
[341041784,1730301053147,-500.0,0.00033698,5]
[341041785,1730301053158,-662.44,0.00033698,5]
[341041786,1730301053169,-500.0,0.00033698,5]
[341041787,1730301053179,-500.0,0.00033698,5]
[341041788,1730301053192,-500.0,0.00033698,5]
[341041789,1730301053202,-646.17,0.00033698,5]
[341041790,1730301053212,-500.0,0.00033698,5]
[341041791,1730301053224,-500.0,0.00033698,5]
[341041792,1730301053236,-679.04,0.00033698,5]
[341041793,1730301053247,-500.0,0.00033698,5]
[341041794,1730301053257,-925.77,0.00033698,5]
[341041795,1730301053267,-500.0,0.00033698,5]
[341041796,1730301053278,-500.0,0.00033698,5]
[341041797,1730301053288,-854.36,0.00033698,5]
[341041798,1730301053300,-500.0,0.00033698,5]
[341041799,1730301053311,-524.7,0.00033698,5]
[341041800,1730301053322,-1022.86,0.00033698,5]
[341041801,1730301053344,-725.7,0.00033698,5]
[341041802,1730301053358,-500.0,0.00033698,5]
[341041803,1730301053370,-500.0,0.00033698,5]
[341041804,1730301053381,-500.0,0.00033698,5]
[341041805,1730301053393,-1018.14,0.00033698,5]
[341041806,1730301053405,-500.0,0.00033698,5]
[341041807,1730301053417,-823.86,0.00033698,5]
[341041808,1730301053429,-1098.19,0.00033698,5]
[341041809,1730301053444,-574.74,0.00033698,5]
[341041810,1730301053455,-500.0,0.00033698,5]
[341041811,1730301053466,-500.0,0.00033698,5]
[341041812,1730301053476,-500.0,0.00033698,5]
[341041813,1730301053487,-258.91654821,0.00033698,5]
[341041814,1730301053498,-500.0,0.00033698,5]
[341041815,1730301053510,-500.0,0.00033698,5]
[341041816,1730301053522,-500.0,0.00033698,5]
[341041817,1730301053533,-500.0,0.00033698,5]
[341041818,1730301053544,-341.3231384,0.00033698,5]
[341041819,1730301053556,-500.0,0.00033698,5]
[341041820,1730301053566,-546.7,0.00033698,5]
[341041821,1730301053576,-500.0,0.00033698,5]
[341041822,1730301053587,-500.0,0.00033698,5]
[341041823,1730301053599,-500.0,0.00033698,5]
[341041824,1730301053610,-500.0,0.00033698,5]
[341041825,1730301053622,-636.4,0.00033698,5]
[341041826,1730301053633,-500.0,0.00033698,5]
[341041827,1730301053645,-1397.76,0.00033698,5]
[341041828,1730301053657,-540.06,0.00033698,5]
[341041829,1730301053669,-500.0,0.00033698,5]
[341041830,1730301053953,-601.3,0.00033698,5]
[341041831,1730301053968,-701.17,0.00033698,5]
[341041832,1730301053978,-1140.97,0.00033698,5]
[341041833,1730301053987,-724.57,0.00033698,5]
[341041834,1730301053996,-1327.32,0.00033698,5]
[341041835,1730301054006,-500.0,0.00033698,5]
[341041836,1730301054016,-500.0,0.00033698,5]
[341041837,1730301054025,-794.59,0.00033698,5]
[341041838,1730301054034,-500.0,0.00033698,5]
[341041839,1730301054044,-650.16,0.00033698,5]
[341041840,1730301054053,-508.69,0.00033698,5]
[341041841,1730301054062,-553.9,0.00033698,5]
[341041842,1730301054072,-500.0,0.00033698,5]
[341041843,1730301054081,-979.14,0.00033698,5]
[341041844,1730301054090,-604.38,0.00033698,30]
[341041845,1730301054099,-500.0,0.00033698,5]
[341041846,1730301054108,-500.0,0.00033698,5]
[341041847,1730301054118,-1224.33,0.00033698,5]
[341041848,1730301054128,-500.0,0.00033698,5]
[341041849,1730301054137,-500.0,0.00033698,5]
[341041850,1730301054148,-500.0,0.00033698,5]
[341041851,1730301054158,-902.67,0.00033698,5]
[341041852,1730301054167,-500.0,0.00033698,5]
[341041853,1730301054176,-500.0,0.00033698,5]
[341041854,1730301054186,-500.0,0.00033698,5]
[341041855,1730301054197,-500.0,0.00033698,5]
[341041856,1730301054210,-778.22,0.00033698,5]
[341041857,1730301054220,-500.0,0.00033698,5]
[341041858,1730301054229,-500.0,0.00033698,5]
[341041859,1730301054239,-500.0,0.00033698,5]
[341041860,1730301054249,-500.0,0.00033698,5]
[341041861,1730301054258,-500.0,0.00033698,5]
[341041862,1730301054267,-500.0,0.00033698,5]
[341041863,1730301054277,-499.15357848,0.00033698,5]
[341041864,1730301054286,-500.0,0.00033698,5]
[341041865,1730301054298,-1335.04,0.00033698,5]
[341041866,1730301054309,-500.0,0.00033698,5]
[341041867,1730301054318,-546.12,0.00033698,5]
[341041868,1730301054328,-500.0,0.00033698,5]
[341041869,1730301054337,-813.76,0.00033698,5]
[341041870,1730301054346,-500.0,0.00033698,5]
[341041871,1730301054356,-500.0,0.00033698,5]
[341041872,1730301054365,-581.37,0.00033698,5]
[341041873,1730301054375,-601.11,0.00033698,5]
[341041874,1730301054384,-500.0,0.00033698,5]
[341041875,1730301054394,-500.0,0.00033698,5]
[341041876,1730301054403,-500.0,0.00033698,5]
[341041877,1730301054413,-500.0,0.00033698,5]
[341041878,1730301054423,-500.0,0.00033698,5]
[341041879,1730301054432,-500.0,0.00033698,5]
[341041880,1730301054444,-500.0,0.00033698,5]
[341041881,1730301054454,-3900.02,0.00033698,5]
[341041882,1730301054463,-500.0,0.00033698,5]
[341041883,1730301054474,-500.0,0.00033698,5]
[341041884,1730301054484,-3956.8,0.00033698,5]
[341041885,1730301054494,-500.0,0.00033698,5]
[341041886,1730301054504,-1033.49,0.00033698,5]
[341041887,1730301054513,-2561.17,0.00033698,5]
[341041888,1730301054523,-5020.91,0.00033698,5]
[341041889,1730301054532,-1504.38,0.00033698,5]
[341041890,1730301054542,-500.0,0.00033698,5]
[341041891,1730301054551,-1265.147,0.00033842,2]
[341041892,1730301054561,-463.531,0.00033842,2]
[341041893,1730301054570,-195.237,0.00033842,2]
[341041894,1730301054580,-560.733,0.00033842,2]
[341041895,1730301054590,-1981.0,0.00033842,2]
[341041896,1730301054600,-3366.0,0.00033842,2]
[341041897,1730301054609,-1914.0,0.00033842,2]
[341041898,1730301054619,-1253.0,0.00033842,2]
[341041899,1730301054628,-811.0,0.00033842,2]
[341041900,1730301054637,-806.623,0.00033842,2]
[341041901,1730301054646,-175.26,0.00033874,2]
[341041902,1730301054656,-500.0,0.00033972,5]
[341041903,1730301054665,-500.0,0.00033972,5]
[341041904,1730301054675,-500.0,0.00033972,5]
[341041905,1730301054686,-500.0,0.00033972,5]
[341041906,1730301054696,-500.0,0.00033972,5]
[341041907,1730301054706,-1139.26,0.00033972,2]
[341041908,1730301054715,-600.73,0.00033972,5]
[341041909,1730301054724,-500.0,0.00033972,5]
[341041910,1730301054734,-879.74,0.00033972,5]
[341041911,1730301054743,-834.42,0.00033972,5]
[341041912,1730301054753,-500.0,0.00033972,5]
[341041913,1730301054763,-500.0,0.00033972,5]
[341041914,1730301054775,-500.0,0.00033972,5]
[341041915,1730301054785,-500.0,0.00033972,5]
[341041916,1730301054795,-500.0,0.00033972,5]
[341041917,1730301054805,-500.0,0.00033972,5]
[341041918,1730301054816,-500.0,0.00033972,5]
[341041919,1730301054827,-500.0,0.00033972,5]
[341041920,1730301054837,-500.0,0.00033972,5]
[341041921,1730301054846,-541.52,0.00033972,5]
[341041922,1730301054857,-646.69,0.00033972,5]
[341041923,1730301054866,-500.0,0.00033972,5]
[341041924,1730301054877,-599.58,0.00033972,5]
[341041925,1730301054887,-739.01,0.00033972,5]
[341041926,1730301054898,-644.7,0.00033972,5]
[341041927,1730301054907,-500.0,0.00033972,5]
[341041928,1730301054918,-610.76,0.00033972,5]
[341041929,1730301054929,-500.0,0.00033972,5]
[341041930,1730301054939,-500.0,0.00033972,5]
[341041931,1730301054948,-500.0,0.00033972,5]
[341041932,1730301054958,-500.0,0.00033972,5]
[341041933,1730301054967,-500.0,0.00033972,5]
[341041934,1730301054977,-500.0,0.00033972,5]
[341041935,1730301054987,-1213.36,0.00033972,5]
[341041936,1730301054998,-500.0,0.00033972,5]
[341041937,1730301055007,-500.0,0.00033972,5]
[341041938,1730301055016,-500.0,0.00033972,5]
[341041939,1730301055025,-741.71,0.00033972,5]
[341041940,1730301055035,-500.0,0.00033972,5]
[341041941,1730301055044,-500.0,0.00033972,5]
[341041942,1730301055054,-500.0,0.00033972,5]
[341041943,1730301055063,-500.0,0.00033972,5]
[341041944,1730301055073,-791.34,0.00033972,5]
[341041945,1730301055083,-2165.19,0.00033972,5]
[341041946,1730301055093,-2507.94,0.00033972,5]
[341041947,1730301055102,-500.0,0.00033972,5]
[341041948,1730301055111,-500.0,0.00033972,5]
[341041949,1730301055121,-556.27,0.00033972,5]
[341041950,1730301055130,-500.0,0.00033972,5]
[341041951,1730301055139,-850.73,0.00033972,5]
[341041952,1730301055149,-500.0,0.00033972,5]
[341041953,1730301055159,-500.0,0.00033972,5]
[341041954,1730301055168,-500.0,0.00033972,5]
[341041955,1730301055177,-500.0,0.00033972,5]
[341041956,1730301055189,-594.99,0.00033972,5]
[341041957,1730301055199,-500.0,0.00033972,5]
[341041958,1730301055209,-500.0,0.00033972,5]
[341041959,1730301055219,-500.0,0.00033972,5]
[341041960,1730301055230,-362.05354073,0.00033972,5]
[341041961,1730301055240,-638.53,0.00033972,5]
[341041962,1730301055249,-765.24,0.00033972,5]
[341041963,1730301055259,-500.0,0.00033972,5]
[341041964,1730301055268,-500.0,0.00033972,5]
[341041965,1730301055277,-500.0,0.00033972,5]
[341041966,1730301055286,-500.0,0.00033972,5]
[341041967,1730301055295,-726.09,0.00033972,5]
[341041968,1730301055304,-500.0,0.00033972,5]
[341041969,1730301055314,-872.19,0.00033972,5]
[341041970,1730301055323,-1312.35,0.00033972,5]
[341041971,1730301055332,-500.0,0.00033972,5]
[341041972,1730301055341,-500.0,0.00033972,5]
[341041973,1730301055350,-500.0,0.00033972,5]
[341041974,1730301055360,-1481.81,0.00033972,5]
[341041975,1730301055369,-500.0,0.00033972,5]
[341041976,1730301055379,-500.0,0.00033972,5]
[341041977,1730301055388,-481.91363032,0.00033972,5]
[341041978,1730301055397,-500.0,0.00033972,5]
[341041979,1730301055407,-662.44,0.00033972,5]
[341041980,1730301055416,-500.0,0.00033972,5]
[341041981,1730301055425,-500.0,0.00033972,5]
[341041982,1730301055434,-500.0,0.00033972,5]
[341041983,1730301055446,-646.17,0.00033972,5]
[341041984,1730301055455,-500.0,0.00033972,5]
[341041985,1730301055465,-500.0,0.00033972,5]
[341041986,1730301055474,-679.04,0.00033972,5]
[341041987,1730301055484,-500.0,0.00033972,5]
[341041988,1730301055494,-925.77,0.00033972,5]
[341041989,1730301055503,-500.0,0.00033972,5]
[341041990,1730301055512,-500.0,0.00033972,5]
[341041991,1730301055522,-854.36,0.00033972,5]
[341041992,1730301055531,-500.0,0.00033972,5]
[341041993,1730301055541,-524.7,0.00033972,5]
[341041994,1730301055551,-1022.86,0.00033972,5]
[341041995,1730301055561,-725.7,0.00033972,5]
[341041996,1730301055571,-500.0,0.00033972,5]
[341041997,1730301055580,-500.0,0.00033972,5]
[341041998,1730301055589,-500.0,0.00033972,5]
[341041999,1730301055599,-1018.14,0.00033972,5]
[341042000,1730301055608,-823.86,0.00033972,5]
[341042001,1730301055618,-500.0,0.00033972,5]
[341042002,1730301055628,-1098.19,0.00033972,5]
[341042003,1730301055637,-574.74,0.00033972,5]
[341042004,1730301055646,-321.01743904,0.00033972,5]
[341042005,1730301055655,-500.0,0.00033972,5]
[341042006,1730301055665,-500.0,0.00033972,5]
[341042007,1730301055675,-500.0,0.00033972,5]
[341042008,1730301055684,-500.0,0.00033972,5]
[341042009,1730301055698,-500.0,0.00033972,5]
[341042010,1730301055714,-500.0,0.00033972,5]
[341042011,1730301055723,-500.0,0.00033972,5]
[341042012,1730301055732,-546.7,0.00033972,5]
[341042013,1730301055741,-500.0,0.00033972,5]
[341042014,1730301055750,-500.0,0.00033972,5]
[341042015,1730301055759,-500.0,0.00033972,5]
[341042016,1730301055768,-500.0,0.00033972,5]
[341042017,1730301055778,-636.4,0.00033972,5]
[341042018,1730301055787,-500.0,0.00033972,5]
[341042019,1730301055797,-1397.76,0.00033972,5]
[341042020,1730301055806,-540.06,0.00033972,5]
[341042021,1730301055816,-500.0,0.00033972,5]
[341042022,1730301055826,-601.3,0.00033972,5]
[341042023,1730301055835,-701.17,0.00033972,5]
[341042024,1730301055844,-1140.97,0.00033972,5]
[341042025,1730301055854,-724.57,0.00033972,5]
[341042026,1730301055863,-1327.32,0.00033972,5]
[341042027,1730301055872,-500.0,0.00033972,5]
[341042028,1730301055882,-500.0,0.00033972,5]
[341042029,1730301055891,-794.59,0.00033972,5]
[341042030,1730301055901,-500.0,0.00033972,5]
[341042031,1730301055911,-650.16,0.00033972,5]
[341042032,1730301055920,-508.69,0.00033972,5]
[341042033,1730301055930,-553.9,0.00033972,5]
[341042034,1730301055944,-500.0,0.00033972,5]
[341042035,1730301055954,-979.14,0.00033972,5]
[341042036,1730301055963,-604.38,0.00033972,30]
[341042037,1730301055972,-500.0,0.00033972,5]
[341042038,1730301055981,-500.0,0.00033972,5]
[341042039,1730301055991,-1224.33,0.00033972,5]
[341042040,1730301056000,-500.0,0.00033972,5]
[341042041,1730301056010,-500.0,0.00033972,5]
[341042042,1730301056019,-500.0,0.00033972,5]
[341042043,1730301056029,-902.67,0.00033972,5]
[341042044,1730301056038,-328.01734352,0.00033972,5]
[341042045,1730301056048,-500.0,0.00033972,5]
[341042046,1730301056058,-500.0,0.00033972,5]
[341042047,1730301056067,-500.0,0.00033972,5]
[341042048,1730301056077,-778.22,0.00033972,5]
[341042049,1730301056087,-500.0,0.00033972,5]
[341042050,1730301056096,-500.0,0.00033972,5]
[341042051,1730301056106,-500.0,0.00033972,5]
[341042052,1730301056115,-500.0,0.00033972,5]
[341042053,1730301056125,-500.0,0.00033972,5]
[341042054,1730301056134,-500.0,0.00033972,5]
[341042055,1730301056144,-500.0,0.00033972,5]
[341042056,1730301056153,-1335.04,0.00033972,5]
[341042057,1730301056163,-500.0,0.00033972,5]
[341042058,1730301056172,-546.12,0.00033972,5]
[341042059,1730301056181,-500.0,0.00033972,5]
[341042060,1730301056193,-813.76,0.00033972,5]
[341042061,1730301056203,-500.0,0.00033972,5]
[341042062,1730301056212,-500.0,0.00033972,5]
[341042063,1730301056224,-581.37,0.00033972,5]
[341042064,1730301056234,-601.11,0.00033972,5]
[341042065,1730301056243,-500.0,0.00033972,5]
[341042066,1730301056252,-500.0,0.00033972,5]
[341042067,1730301056262,-500.0,0.00033972,5]
[341042068,1730301056271,-500.0,0.00033972,5]
[341042069,1730301056281,-500.0,0.00033972,5]
[341042070,1730301056290,-500.0,0.00033972,5]